bitfinex/quotes_ETHUSD_20250823
["timestamp","ask_amount","ask_price","bid_price","bid_amount"]
[1755936862916,1.7336,4723.0,4722.9,0.2992]
[1755936863238,5.224,4723.0,4722.9,0.7572]
[1755936863727,1.628,4723.0,4722.9,0.7572]
[1755936864139,5.223,4723.0,4722.9,0.7572]
[1755936865010,5.224,4723.0,4722.9,0.2992]
[1755936865411,5.224,4723.0,4722.9,0.7572]
[1755936865728,5.224,4723.0,4722.9,0.2992]
[1755936865900,5.224,4723.0,4722.9,0.7572]
[1755936866300,1.629,4723.0,4722.9,0.7572]
[1755936866531,5.224,4723.0,4722.9,0.7572]
[1755936867434,1.629,4723.0,4722.9,0.7572]
[1755936867648,5.224,4723.0,4722.9,0.7572]
[1755936868203,5.224,4723.0,4722.9,0.8628]
[1755936868407,5.224,4723.0,4722.9,0.7572]
[1755936868935,5.224,4723.0,4722.9,0.2992]
[1755936869437,5.5166,4723.0,4722.5,0.1056]
[1755936869906,8.224,4723.0,4722.9,0.2992]
[1755936870444,8.224,4723.0,4722.3,0.1056]
[1755936870445,8.6222,4723.0,4722.3,0.1056]
[1755936870646,9.0967,4723.0,4722.3,0.1056]
[1755936870825,3.0,4722.9,4722.3,0.1056]
[1755936871003,3.594,4722.8,4722.3,0.1056]
[1755936871414,3.594,4722.8,4722.7,0.2992]
[1755936872947,1.7346,4723.0,4722.7,0.2992]
[1755936873122,3.594,4722.9,4722.7,0.2992]
[1755936873736,3.594,4722.9,4722.3,0.1056]
[1755936874415,0.1056,4722.6,4722.1,0.004]
[1755936874618,3.594,4722.5,4722.1,0.004]
[1755936874820,3.594,4722.5,4722.2,0.458]
[1755936875016,3.594,4722.5,4722.4,0.2992]
[1755936876037,0.1056,4722.6,4722.4,0.2992]
[1755936876344,1.629,4723.0,4722.4,0.2992]
[1755936876345,3.594,4722.5,4722.4,0.2992]
[1755936876649,0.001,4723.0,4722.5,0.1056]
[1755936876947,3.594,4723.0,4722.9,0.2992]
[1755936877146,3.594,4723.0,4722.9,0.7572]
[1755936877674,3.594,4723.0,4722.2,0.458]
[1755936877813,0.1056,4722.9,4722.2,0.1056]
[1755936879451,0.1056,4722.9,4722.1,0.004]
[1755936879655,3.1056,4722.9,4722.1,0.004]
[1755936880715,5.222,4723.0,4722.1,0.004]
[1755936880716,1.7346,4723.0,4722.8,0.2992]
[1755936880913,3.593,4722.9,4722.3,0.1056]
[1755936882224,1.7346,4723.0,4722.3,0.1056]
[1755936882456,3.593,4722.9,4722.8,0.2992]
[1755936883376,1.7346,4723.0,4722.8,0.7572]
[1755936883561,5.3276,4723.0,4722.9,0.458]
[1755936883756,5.3276,4723.0,4722.9,0.7572]
[1755936883927,3.594,4723.0,4722.9,0.4048]
[1755936890329,3.594,4723.0,4722.9,0.1056]
[1755936890736,3.594,4723.0,4722.9,0.3955]
[1755936892036,3.594,4723.0,4722.9,0.8341]
[1755936892037,0.001,4723.0,4722.9,0.8341]
[1755936898786,0.001,4723.0,4722.9,0.3955]
[1755936900554,0.2989,4723.0,4722.9,0.1056]
[1755936900758,0.762,4723.0,4722.1,0.004]
[1755936900954,0.762,4723.0,4722.5,0.1056]
[1755936901156,0.4631,4722.9,4722.5,0.1056]
[1755936901352,0.2979,4722.6,4722.5,0.1056]
[1755936901564,0.761,4722.6,4722.5,0.1056]
[1755936902157,0.761,4722.6,4722.1,0.004]
[1755936902368,0.4631,4722.5,4722.2,0.1056]
[1755936902560,0.2979,4722.3,4722.2,0.1056]
[1755936903481,0.761,4722.3,4722.2,0.1056]
[1755936904364,0.2979,4722.3,4722.2,0.1056]
[1755936905009,0.4631,4722.6,4722.2,0.1056]
[1755936906502,0.4631,4722.5,4722.2,0.1056]
[1755936908195,0.2979,4722.3,4722.2,0.1056]
[1755936910094,0.761,4722.3,4722.0,0.1056]
[1755936910269,0.4631,4722.2,4722.0,0.1056]
[1755936910588,0.2979,4722.1,4722.0,0.1056]
[1755936910895,4.4566,4722.1,4721.8,0.0096]
[1755936911089,1.628,4722.0,4721.8,0.0096]
[1755936911294,0.2979,4721.9,4721.8,0.0096]
[1755936911455,0.761,4721.9,4721.8,0.0096]
[1755936914162,0.761,4721.9,4721.8,0.0136]
[1755936916663,1.628,4722.0,4721.8,0.3035]
[1755936916864,3.589,4722.4,4721.8,0.7421]
[1755936917162,3.589,4722.4,4721.9,0.5442]
[1755936917490,0.001,4723.5,4722.3,0.3955]
[1755936917667,3.59,4723.5,4722.3,0.3955]
[1755936917865,0.4631,4723.1,4722.7,0.1056]
[1755936918100,0.1056,4723.4,4722.9,0.2899]
[1755936919603,3.59,4723.5,4722.1,0.475]
[1755936919761,3.59,4723.5,4721.8,0.0136]
[1755936919762,3.59,4723.0,4722.6,0.1056]
[1755936919965,0.001,4723.0,4722.6,0.1056]
[1755936920791,0.001,4723.0,4722.9,0.2997]
[1755936921270,0.001,4723.0,4722.6,0.1056]
[1755936923881,0.001,4723.0,4722.9,0.2997]
[1755936925100,0.001,4723.0,4722.9,0.8803]
[1755936930900,0.001,4723.0,4722.9,1.5403]
[1755936931087,0.001,4723.0,4722.9,2.75735591]
[1755936931507,0.001,4723.0,4722.9,1.5403]
[1755936933195,0.001,4723.0,4722.9,0.4053]
[1755936933981,0.3172,4723.0,4722.9,0.1056]
[1755936934185,0.755,4723.0,4721.8,3.6006]
[1755936934513,0.4378,4722.9,4722.7,0.1056]
[1755936934698,0.4378,4722.9,4721.8,3.6006]
[1755936934699,0.3162,4722.8,4721.8,3.6006]
[1755936935008,0.3162,4722.8,4722.5,0.1056]
[1755936935177,0.001,4723.0,4722.7,0.4053]
[1755936937010,0.001,4723.0,4722.7,0.8803]
[1755936937994,0.001,4723.0,4722.8,0.475]
[1755936938195,0.001,4723.0,4722.9,0.4053]
[1755936938506,0.001,4723.0,4722.9,0.60863]
[1755936939609,0.001,4723.0,4722.9,0.30893]
[1755936940307,0.001,4723.0,4722.9,0.60863]
[1755936941108,0.001,4723.0,4722.9,1.08363]
[1755936941993,0.001,4723.0,4722.9,0.60863]
[1755936942316,0.001,4723.0,4722.9,0.30893]
[1755936942516,0.3172,4723.0,4722.9,0.30893]
[1755936943014,0.001,4723.0,4722.9,0.60863]
[1755936943585,0.001,4723.0,4722.9,1.74363]
[1755936944790,0.001,4723.0,4722.9,1.63803]
[1755936945017,0.001,4723.0,4722.9,1.74363]
[1755936945522,0.001,4723.5,4723.4,9.66225907]
[1755936945828,0.021,4723.8,4723.5,0.66]
[1755936946117,0.021,4723.8,4723.7,0.9597]
[1755936946323,0.021,4723.8,4723.7,1.0653]
[1755936946525,0.021,4723.8,4723.7,1.5403]
[1755936946716,0.021,4723.8,4723.7,2.53535259]
[1755936947636,0.021,4723.8,4723.7,6.12135259]
[1755936948189,0.021,4723.8,4723.7,6.01575259]
[1755936948436,0.021,4723.8,4723.7,6.12135259]
[1755936949814,0.021,4723.8,4723.7,9.12135259]
[1755936950002,0.001,4724.8,4723.9,0.66]
[1755936950233,0.001,4724.8,4723.9,2.03063526]
[1755936950390,0.001,4724.8,4723.9,2.46313526]
[1755936951101,0.001,4724.8,4724.2,20.64236312]
[1755936951407,0.001,4724.8,4724.2,24.62866312]
[1755936951587,0.001,4724.8,4724.2,26.77054112]
[1755936951790,0.001,4724.8,4724.3,3.66]
[1755936952021,0.001,4724.8,4724.7,0.9557]
[1755936952222,0.001,4724.8,4724.7,6.2733]
[1755936952391,0.001,4724.8,4724.7,6.7058]
[1755936952586,0.001,4724.8,4724.7,7.67638]
[1755936955118,0.001,4724.8,4724.7,7.83588278]
[1755936956390,0.001,4724.8,4724.7,10.83588278]
[1755936957427,0.2886,4724.8,4724.7,2.59758]
[1755936957644,0.2886,4724.8,4724.7,5.211]
[1755936957645,0.7511,4724.8,4724.7,5.211]
[1755936958311,0.001,4724.8,4724.7,5.211]
[1755936958712,0.2886,4724.8,4724.7,5.211]
[1755936958917,0.2886,4724.8,4724.7,5.7321]
[1755936959225,0.2886,4724.8,4724.7,6.3921]
[1755936959631,0.001,4724.8,4724.7,6.6878]
[1755936959938,0.001,4724.8,4724.7,6.3921]
[1755936960293,0.7511,4724.8,4724.7,1.627]
[1755936960496,0.7511,4724.8,4724.7,5.211]
[1755936965548,0.2886,4724.8,4724.7,5.871]
[1755936965729,0.001,4724.8,4724.7,6.4581]
[1755936966260,0.001,4724.8,4724.7,6.7538]
[1755936966761,0.001,4724.8,4724.7,7.1863]
[1755936967329,0.001,4724.8,4724.7,3.2754]
[1755936967645,0.001,4724.8,4724.7,6.2723]
[1755936967850,0.001,4724.8,4724.7,6.7048]
[1755936968056,0.001,4724.8,4724.7,9.7048]
[1755936968221,0.001,4725.0,4724.8,3.66]
[1755936968426,0.001,4725.0,4724.9,7.5397]
[1755936968752,0.001,4725.0,4724.9,9.24268]
[1755936969344,0.001,4725.0,4724.9,8.81018]
[1755936969548,0.001,4725.0,4724.9,5.81018]
[1755936969758,0.001,4725.0,4724.9,4.5397]
[1755936970266,0.001,4725.0,4724.9,0.9557]
[1755936970564,0.2886,4725.0,4724.9,4.244]
[1755936970740,0.7511,4725.0,4724.9,3.584]
[1755936971119,0.7511,4725.0,4724.7,1.7326]
[1755936971319,0.2886,4725.0,4724.9,0.66]
[1755936971648,0.2886,4725.0,4724.7,1.7326]
[1755936971944,0.4625,4724.9,4724.8,3.584]
[1755936972145,0.7501,4724.9,4724.8,3.583]
[1755936972623,0.2876,4724.9,4724.8,3.583]
[1755936973248,0.7501,4724.9,4724.8,3.583]
[1755936973449,0.2876,4724.9,4724.8,4.11456]
[1755936973653,0.001,4725.0,4724.9,0.66]
[1755936974151,0.7511,4725.0,4724.9,4.243]
[1755936974650,0.7511,4725.0,4724.9,3.583]
[1755936975033,0.7511,4725.0,4724.7,1.7326]
[1755936975351,0.4625,4724.9,4724.8,3.583]
[1755936975652,0.7501,4724.9,4724.8,3.583]
[1755936978354,0.7501,4724.9,4724.7,0.1056]
[1755936978539,0.4331,4724.8,4724.7,0.1056]
[1755936978742,0.7341,4724.8,4724.7,0.1056]
[1755936979739,0.7341,4724.8,4723.3,0.004]
[1755936979921,0.4331,4724.7,4724.3,0.1056]
[1755936980125,0.301,4724.4,4724.3,0.1056]
[1755936980351,0.7341,4724.4,4724.3,0.1056]
[1755936981930,0.7341,4724.4,4723.9,0.1056]
[1755936982257,0.4331,4724.3,4723.9,0.1056]
[1755936982556,0.301,4724.0,4723.9,0.1056]
[1755936982749,0.7341,4724.0,4723.9,0.1056]
[1755936983375,0.301,4724.0,4723.9,0.1056]
[1755936986087,0.1066,4724.9,4723.9,0.1056]
[1755936986383,0.1066,4724.9,4724.0,0.66]
[1755936986384,0.001,4724.9,4724.0,0.66]
[1755936986682,0.001,4724.9,4724.2,0.66]
[1755936987178,0.001,4724.9,4724.8,0.1056]
[1755936988378,0.302,4724.9,4724.8,0.1056]
[1755936988986,0.7351,4724.9,4724.8,0.1056]
[1755936990154,0.302,4724.9,4724.8,0.1056]
[1755936990460,0.001,4724.9,4724.8,0.1056]
[1755936990659,0.7351,4724.9,4723.9,3.584]
[1755936990861,0.4331,4724.8,4724.6,0.1056]
[1755936991186,0.301,4724.7,4724.6,0.1056]
[1755936991385,0.001,4724.9,4724.6,0.1056]
[1755936991586,0.001,4724.9,4724.8,0.1056]
[1755936992486,0.001,4724.9,4724.8,0.3973]
[1755936994056,0.302,4724.9,4724.8,0.1056]
[1755936994569,0.7351,4724.9,4724.8,0.1056]
[1755936994976,0.001,4724.9,4724.8,0.1056]
[1755936995159,0.001,4724.9,4724.8,0.3973]
[1755936995584,0.001,4724.9,4724.8,0.1056]
[1755936996182,0.302,4724.9,4724.8,0.1056]
[1755936996380,0.7351,4724.9,4724.8,0.1056]
[1755936997087,0.001,4724.9,4724.8,0.3973]
[1755936997925,0.7351,4724.9,4724.8,0.1056]
[1755936998780,0.001,4724.9,4724.8,0.3973]
[1755936998981,0.302,4724.9,4724.8,0.1056]
[1755936999192,0.7351,4724.9,4724.8,0.1056]
[1755936999809,0.7351,4724.9,4724.8,0.1096]
[1755937001137,0.001,4724.9,4724.8,0.1096]
[1755937001485,0.001,4724.9,4724.8,0.4013]
[1755937002941,0.001,4724.9,4724.8,0.1096]
[1755937003147,0.302,4724.9,4724.8,0.1096]
[1755937003322,0.001,4724.9,4724.8,0.1096]
[1755937003521,0.001,4724.9,4724.8,0.4013]
[1755937004118,0.001,4724.9,4724.8,0.8347]
[1755937005653,0.001,4724.9,4724.8,0.4013]
[1755937006252,0.001,4724.9,4724.8,0.1096]
[1755937006253,0.302,4724.9,4724.8,0.1096]
[1755937006851,0.001,4724.9,4724.8,0.1096]
[1755937007215,0.001,4724.9,4724.8,0.4013]
[1755937009141,0.7609,4724.9,4724.8,0.1096]
[1755937010324,0.299,4724.9,4724.8,0.1096]
[1755937010554,0.7609,4724.9,4724.8,0.1096]
[1755937010759,0.299,4724.9,4724.8,0.1096]
[1755937011050,0.001,4724.9,4724.8,0.1096]
[1755937011241,0.001,4724.9,4724.8,0.4256]
[1755937012949,0.001,4724.9,4724.8,1.5468]
[1755937013146,0.001,4724.9,4724.8,1.70148]
[1755937016646,0.001,4724.9,4724.8,1.24028]
[1755937017772,0.001,4724.9,4724.8,1.70148]
[1755937019963,0.001,4724.9,4724.8,1.72057465]
[1755937020471,0.001,4724.9,4724.8,1.3057515]
[1755937020984,0.001,4724.9,4724.8,1.85616049]
[1755937022052,0.001,4724.9,4724.8,1.95256802]
[1755937022490,0.001,4724.9,4724.8,2.05219231]
[1755937022848,0.001,4724.9,4724.8,5.73864114]
[1755937024259,0.001,4724.9,4724.8,5.8791107]
[1755937024457,0.001,4724.9,4724.8,6.01808712]
[1755937024654,0.001,4724.9,4724.8,6.15917595]
[1755937024885,0.001,4724.9,4724.8,6.24392195]
[1755937025354,0.001,4724.9,4724.8,6.40928876]
[1755937026691,0.001,4724.9,4724.8,5.94808876]
[1755937026858,0.001,4724.9,4724.8,6.72774103]
[1755937027758,0.001,4724.9,4724.8,6.74774103]
[1755937028176,0.001,4724.9,4724.8,7.14279552]
[1755937028398,0.001,4724.9,4724.8,7.66849281]
[1755937028599,0.001,4724.9,4724.8,8.42582851]
[1755937029209,0.001,4724.9,4724.8,9.18878701]
[1755937029985,0.001,4724.9,4724.8,8.64284101]
[1755937030389,0.001,4724.9,4724.8,9.10404101]
[1755937033017,0.001,4724.9,4724.8,8.72758401]
[1755937033316,0.001,4724.9,4724.8,9.18878401]
[1755937034326,0.001,4724.9,4724.8,8.72758401]
[1755937035799,0.001,4724.9,4724.8,8.72658401]
[1755937038620,0.3117,4724.9,4724.8,4.16958401]
[1755937038827,0.7863,4724.9,4724.8,7.75058401]
[1755937039009,0.3117,4724.9,4724.8,4.16958401]
[1755937039225,0.3117,4724.9,4724.8,8.41058401]
[1755937039925,0.7863,4724.9,4724.8,4.82958401]
[1755937040106,0.7863,4724.9,4724.8,8.41058401]
[1755937041800,0.3117,4724.9,4724.8,8.41058401]
[1755937042327,0.3117,4724.9,4724.8,8.69728401]
[1755937042328,0.001,4724.9,4724.8,8.69728401]
[1755937043100,0.3117,4724.9,4724.8,8.41058401]
[1755937043614,0.001,4724.9,4724.8,8.41058401]
[1755937043808,0.7863,4724.9,4724.8,4.82958401]
[1755937044003,0.7863,4724.9,4724.8,8.41058401]
[1755937044904,0.001,4724.9,4724.8,8.69728401]
[1755937045324,0.001,4724.9,4724.8,9.14528401]
[1755937045727,0.001,4724.9,4724.8,5.11628401]
[1755937045919,0.001,4724.9,4724.8,12.67058401]
[1755937046757,0.001,4724.9,4724.8,8.41058401]
[1755937046917,0.3117,4724.9,4724.8,8.41058401]
[1755937047420,0.001,4724.9,4724.8,8.41058401]
[1755937047606,0.001,4724.9,4724.8,8.69728401]
[1755937048932,0.4746,4725.4,4724.9,0.66]
[1755937049118,1.49235899,4726.9,4725.1,0.66]
[1755937049324,0.3107,4725.2,4725.1,0.66]
[1755937049520,0.3107,4725.2,4725.1,5.868]
[1755937049755,0.7853,4725.2,4725.1,3.028203]
[1755937049935,0.7853,4725.2,4725.1,7.38699624]
[1755937050145,0.7853,4725.2,4725.1,6.75139324]
[1755937051623,0.7853,4725.2,4725.1,6.09139324]
[1755937051822,0.7853,4725.2,4725.1,5.3126]
[1755937052414,0.7853,4725.2,4725.1,0.1056]
[1755937052811,0.7853,4725.2,4724.8,7.40456101]
[1755937053039,0.3107,4725.2,4724.8,3.93016101]
[1755937053245,0.4746,4725.1,4724.8,3.93016101]
[1755937053442,0.3107,4724.9,4724.8,3.93016101]
[1755937053651,0.7853,4724.9,4724.8,3.93016101]
[1755937054219,0.8909,4724.9,4724.8,3.82456101]
[1755937057355,3.66,4724.8,4724.3,0.004]
[1755937057648,12.30845315,4724.4,4724.3,0.004]
[1755937057834,12.41405315,4724.4,4724.3,0.004]
[1755937058363,12.88865315,4724.4,4724.3,0.004]
[1755937059150,12.97346915,4724.4,4724.3,0.004]
[1755937063565,3.975716,4724.4,4724.3,0.004]
[1755937063769,7.556716,4724.4,4724.3,0.004]
[1755937064862,0.501116,4724.4,4724.3,0.004]
[1755937065055,4.082116,4724.4,4724.3,0.004]
[1755937067066,0.501116,4724.4,4724.3,0.004]
[1755937067377,4.082116,4724.4,4724.3,0.004]
[1755937067540,3.581,4724.4,4724.3,0.004]
[1755937067747,0.1056,4724.5,4724.3,0.2907]
[1755937067969,0.1056,4724.8,4724.3,0.2907]
[1755937068149,3.581,4724.9,4724.4,0.1056]
[1755937068453,0.3963,4725.0,4724.8,0.2977]
[1755937068853,0.1056,4725.0,4724.8,0.2977]
[1755937069374,0.7534,4724.9,4724.4,0.1056]
[1755937069578,0.4437,4724.8,4724.4,0.1056]
[1755937069943,0.3097,4724.5,4724.3,0.004]
[1755937070177,0.1056,4724.4,4724.3,0.004]
[1755937070378,0.4153,4724.4,4724.3,0.004]
[1755937070672,0.859,4724.4,4724.3,0.004]
[1755937072243,0.4153,4724.4,4724.3,0.004]
[1755937072561,0.1056,4724.4,4724.3,0.004]
[1755937072965,0.2112,4724.4,4724.3,0.3017]
[1755937073172,0.1056,4724.4,4724.3,0.3017]
[1755937073476,0.7534,4724.4,4724.3,0.004]
[1755937073973,0.859,4724.4,4724.3,0.004]
[1755937074374,0.1056,4724.4,4724.3,0.004]
[1755937074592,0.1056,4724.4,4724.3,0.3017]
[1755937075143,0.4153,4724.4,4724.3,0.004]
[1755937075383,0.859,4724.4,4724.3,0.004]
[1755937078209,0.9646,4724.4,4724.3,0.004]
[1755937080603,4.5446,4724.4,4724.3,0.004]
[1755937082520,5.00092928,4724.4,4724.3,0.004]
[1755937083922,3.66,4724.3,4723.8,0.004]
[1755937084233,9.30745315,4723.9,4723.8,0.004]
[1755937084389,12.88745315,4723.9,4723.8,0.004]
[1755937084588,13.34379482,4723.9,4723.8,0.004]
[1755937084786,13.89309482,4723.9,4723.8,0.004]
[1755937085716,13.97791782,4723.9,4723.8,0.004]
[1755937087622,13.97791782,4723.9,4723.8,0.024]
[1755937090365,16.97791782,4723.9,4723.8,0.024]
[1755937094752,12.49787615,4723.9,4723.8,0.024]
[1755937094953,6.770423,4723.9,4723.8,0.7763]
[1755937095457,6.770423,4723.9,4723.8,0.3217]
[1755937095755,3.770423,4723.9,4723.8,0.7763]
[1755937095931,3.58,4723.9,4723.8,0.7763]
[1755937097219,3.58,4724.1,4723.8,0.7763]
[1755937097425,3.58,4724.1,4723.9,0.4546]
[1755937097625,3.58,4724.1,4724.0,0.2977]
[1755937097827,3.58,4724.1,4724.0,0.7523]
[1755937098054,0.1056,4724.4,4724.0,0.7523]
[1755937098366,3.58,4724.2,4724.1,0.4546]
[1755937098545,3.58,4724.2,4724.1,0.7402]
[1755937102762,0.1056,4724.4,4724.1,0.7402]
[1755937102966,3.58,4724.7,4724.2,0.469]
[1755937103180,0.001,4724.8,4724.6,0.2856]
[1755937103389,0.001,4724.8,4724.6,0.3912]
[1755937103682,0.001,4724.8,4724.7,0.469]
[1755937103989,0.001,4724.8,4724.7,0.7546]
[1755937107803,0.001,4724.8,4724.7,0.8602]
[1755937109623,0.001,4724.8,4724.7,0.3912]
[1755937113235,0.7437,4724.8,4723.8,0.024]
[1755937113387,0.4492,4724.7,4723.8,0.024]
[1755937113586,0.2935,4723.9,4723.8,0.024]
[1755937115233,0.4492,4724.2,4723.8,0.024]
[1755937115234,0.4492,4724.2,4723.8,0.3096]
[1755937115398,0.1056,4724.4,4723.8,0.3096]
[1755937116317,0.1056,4724.4,4723.8,0.024]
[1755937116486,0.2935,4723.9,4723.8,0.024]
[1755937116689,0.7427,4723.9,4723.8,0.024]
[1755937117191,0.2935,4723.9,4723.8,0.024]
[1755937117699,0.7427,4723.9,4723.8,0.024]
[1755937117888,0.2935,4723.9,4723.8,0.024]
[1755937118091,0.7427,4723.9,4723.8,0.024]
[1755937118295,0.8483,4723.9,4723.8,0.024]
[1755937119125,4.4253,4723.9,4723.8,0.024]
[1755937121959,7.4253,4723.9,4723.8,0.024]
[1755937124442,3.8483,4723.9,4723.8,0.024]
[1755937124741,7.4253,4723.9,4723.8,0.024]
[1755937126730,3.8483,4723.9,4723.8,0.024]
[1755937126929,7.4253,4723.9,4723.8,0.024]
[1755937133880,7.510124,4723.9,4723.8,0.024]
[1755937134099,10.28701893,4723.9,4723.8,0.024]
[1755937134372,3.0,4723.6,4723.3,0.004]
[1755937134668,12.41485315,4723.4,4723.3,0.004]
[1755937134839,3.0,4723.3,4723.1,0.004]
[1755937135040,8.00413151,4723.2,4723.1,0.004]
[1755937135343,8.54095867,4723.2,4723.1,0.004]
[1755937135666,10.28738283,4723.2,4723.1,0.004]
[1755937135861,5.77734315,4722.9,4722.8,0.024]
[1755937136064,12.05254273,4722.9,4722.8,0.024]
[1755937136373,12.28427399,4722.9,4722.8,0.024]
[1755937136556,12.48182166,4722.9,4722.8,0.024]
[1755937137142,10.36447851,4722.9,4722.8,0.024]
[1755937137368,12.28427399,4722.9,4722.8,0.024]
[1755937138977,10.16693084,4722.9,4722.8,0.024]
[1755937139178,12.28427399,4722.9,4722.8,0.024]
[1755937139975,10.16693084,4722.9,4722.8,0.024]
[1755937140175,12.28427399,4722.9,4722.8,0.024]
[1755937140340,2.11752249,4722.5,4722.1,0.004]
[1755937140542,3.66,4722.2,4722.1,0.004]
[1755937140806,7.6541,4722.2,4722.1,0.004]
[1755937141003,8.168365,4722.2,4722.1,0.004]
[1755937142804,8.168365,4722.2,4721.7,0.004]
[1755937143004,14.77554471,4721.9,4721.7,0.004]
[1755937143181,20.8528711,4721.9,4721.7,0.004]
[1755937143386,21.2822711,4721.9,4721.7,0.004]
[1755937145109,21.3671431,4721.9,4721.7,0.004]
[1755937149245,0.66,4721.7,4720.8,0.024]
[1755937149534,15.08749331,4720.9,4720.8,0.024]
[1755937149707,23.26625315,4720.9,4720.8,0.024]
[1755937149912,23.69565315,4720.9,4720.8,0.024]
[1755937150532,24.12845315,4720.9,4720.8,0.024]
[1755937151205,10.1518,4720.9,4720.8,0.3204]
[1755937151405,23.46845315,4720.9,4720.8,0.024]
[1755937151730,23.03905315,4720.9,4720.8,0.024]
[1755937152414,19.14955315,4720.9,4720.8,0.3204]
[1755937152614,22.72755315,4720.9,4720.8,0.3204]
[1755937153034,23.03905315,4720.9,4720.8,0.024]
[1755937153355,23.46845315,4720.9,4720.8,0.024]
[1755937153668,24.12845315,4720.9,4720.8,0.024]
[1755937154162,26.69958794,4720.9,4720.8,0.024]
[1755937154533,27.03110636,4720.9,4720.8,0.024]
[1755937159351,27.70605982,4720.9,4720.8,0.024]
[1755937159569,27.13670636,4720.9,4720.8,0.024]
[1755937160265,27.70605982,4720.9,4720.8,0.024]
[1755937161268,27.13670636,4720.9,4720.8,0.024]
[1755937162257,27.33357986,4720.9,4720.8,0.024]
[1755937163259,25.2153397,4720.9,4720.8,0.024]
[1755937163670,27.33357986,4720.9,4720.8,0.024]
[1755937164440,25.2153397,4720.9,4720.8,0.024]
[1755937164661,27.33383079,4720.9,4720.8,0.024]
[1755937165365,28.47154978,4720.9,4720.8,0.024]
[1755937165957,25.92390962,4720.9,4720.8,0.024]
[1755937166281,8.04181305,4720.9,4720.8,0.7884]
[1755937166449,7.2574,4720.9,4720.8,0.7884]
[1755937166653,14.29020823,4720.9,4720.8,0.7884]
[1755937166838,7.71220823,4720.9,4720.8,0.7884]
[1755937167038,11.29020823,4720.9,4720.8,0.7884]
[1755937167654,14.29020823,4720.9,4720.8,0.7884]
[1755937172362,10.71220823,4720.9,4720.8,0.7884]
[1755937172563,14.29020823,4720.9,4720.8,0.7884]
[1755937172763,23.28796138,4720.9,4720.8,0.024]
[1755937173059,24.69746138,4720.9,4720.8,0.024]
[1755937173264,24.89519897,4720.9,4720.8,0.024]
[1755937173987,24.89521616,4720.9,4720.8,0.024]
[1755937174510,24.46151616,4720.9,4720.8,0.024]
[1755937174782,20.88351616,4720.9,4720.8,0.024]
[1755937175170,24.46051616,4720.9,4720.8,0.024]
[1755937175373,20.88351616,4720.9,4720.8,0.024]
[1755937175547,21.31721616,4720.9,4720.8,0.024]
[1755937175976,24.89421616,4720.9,4720.8,0.024]
[1755937177271,27.13111847,4720.9,4720.8,0.024]
[1755937178055,28.26883746,4720.9,4720.8,0.024]
[1755937178429,24.69183746,4720.9,4720.8,0.024]
[1755937178584,28.26883746,4720.9,4720.8,0.024]
[1755937179788,28.2688501,4720.9,4720.8,0.024]
[1755937180382,28.2688501,4720.9,4719.8,0.024]
[1755937180383,0.66,4720.3,4719.8,0.024]
[1755937180711,0.1056,4719.9,4719.8,0.024]
[1755937180924,8.76640823,4719.9,4719.8,0.024]
[1755937182202,8.76640823,4719.9,4719.8,0.3296]
[1755937182386,9.22520823,4719.9,4719.8,0.7884]
[1755937183221,9.22520823,4719.9,4719.8,0.024]
[1755937183416,9.54100823,4719.9,4719.8,0.024]
[1755937184126,9.22520823,4719.9,4719.8,0.3296]
[1755937185092,9.54100823,4719.9,4719.8,0.024]
[1755937185300,10.63470823,4719.9,4719.8,0.024]
[1755937185495,12.9510715,4719.9,4719.8,0.024]
[1755937187919,12.9510715,4719.9,4718.8,0.02]
[1755937187920,0.66,4719.3,4718.8,0.02]
[1755937188120,3.0,4719.1,4718.8,0.02]
[1755937188331,3.1056,4718.9,4718.8,0.02]
[1755937188535,8.23370823,4718.9,4717.8,0.02]
[1755937188736,8.99775315,4717.9,4717.8,0.02]
[1755937188915,18.61486138,4717.9,4717.8,0.02]
[1755937189233,19.26190898,4717.9,4717.8,0.02]
[1755937189435,19.76090898,4717.9,4717.8,0.02]
[1755937190505,19.56346138,4717.9,4717.8,0.02]
[1755937190832,19.76049621,4717.9,4717.8,0.02]
[1755937191046,15.73389621,4717.9,4717.8,0.02]
[1755937191246,19.31089621,4717.9,4717.8,0.02]
[1755937191437,19.11386138,4717.9,4717.8,0.02]
[1755937191637,19.760326,4717.9,4717.8,0.02]
[1755937191841,21.8799131,4717.9,4717.8,0.02]
[1755937192252,0.66,4717.7,4716.8,0.024]
[1755937192548,3.0,4717.0,4716.8,0.024]
[1755937192749,3.0,4717.0,4716.9,0.3098]
[1755937192953,8.206,4717.0,4716.9,0.3098]
[1755937193450,8.6556,4717.0,4716.9,0.3098]
[1755937193822,8.81692291,4717.0,4716.9,0.3098]
[1755937194948,9.47692291,4717.0,4716.9,0.3098]
[1755937195253,5.23992291,4717.0,4716.9,0.3098]